bitfinex-derivatives/quotes_SOLF0:USTF0_20241212
["timestamp","ask_amount","ask_price","bid_price","bid_amount"]
[1734027592132,2.1368,233.89,233.87,3.29040888]
[1734027592432,2.1368,233.89,233.84,2.1372]
[1734027592433,2.1369,233.88,233.84,2.1372]
[1734027592632,2.12,233.94,233.85,18.11838865]
[1734027592837,2.12,233.94,233.86,3.2911968]
[1734027593040,2.1368,233.89,233.87,3.2911968]
[1734027593235,2.12,233.94,233.84,23.64781555]
[1734027593430,2.12,233.94,233.85,13.0286402]
[1734027593737,2.12,233.94,233.86,3.2915679]
[1734027594041,2.1367,233.9,233.87,3.2915679]
[1734027594236,2.12,233.94,233.84,5.92997558]
[1734027594440,2.1368,233.89,233.88,3.29203341]
[1734027595545,2.1368,233.89,233.85,3.29203341]
[1734027595843,2.1368,233.89,233.85,5.42913341]
[1734027596048,2.1368,233.89,233.86,3.29319574]
[1734027596341,2.1368,233.89,233.87,3.29319574]
[1734027596544,2.1368,233.89,233.85,2.1371]
[1734027596745,2.1368,233.89,233.86,3.29433068]
[1734027596944,2.1368,233.89,233.87,3.29433068]
[1734027597146,2.1368,233.89,233.85,2.1371]
[1734027597347,2.1368,233.89,233.86,10.71027035]
[1734027597644,2.1368,233.89,233.87,3.29639608]
[1734027597834,2.1368,233.89,233.85,2.1371]
[1734027597835,5.06455527,233.98,233.88,7.41385628]
[1734027598041,9.53385628,233.97,233.89,3.29615692]
[1734027598246,9.53385628,233.97,233.88,7.41385628]
[1734027598247,9.53385628,233.97,233.9,3.29774248]
[1734027598446,9.53385628,233.97,233.89,2.1367]
[1734027598640,9.53385628,233.97,233.9,3.29768987]
[1734027598840,2.136,233.98,233.89,2.1367]
[1734027599037,7.2751655,233.97,233.9,10.71146195]
[1734027599338,7.2751655,233.97,233.91,3.29760567]
[1734027599537,7.2751655,233.97,233.89,2.1367]
[1734027599741,2.1365,233.93,233.9,3.29994307]
[1734027599947,7.2751655,233.97,233.91,3.29994307]
[1734027600146,2.1364,233.93,233.88,2.1367]
[1734027600336,2.1364,233.93,233.89,11.55438476]
[1734027600538,2.1364,233.93,233.9,2.9669662]
[1734027600742,2.1364,233.93,233.9,3.30292129]
[1734027601037,2.1364,233.93,233.91,3.30292129]
[1734027601237,2.1364,233.93,233.92,3.30292129]
[1734027601747,2.1365,233.92,233.87,8.06677558]
[1734027601944,2.1365,233.92,233.88,16.05158789]
[1734027602241,2.1365,233.92,233.89,11.56679028]
[1734027602446,2.1365,233.92,233.9,6.2765465]
[1734027602646,2.1365,233.92,233.91,3.30640236]
[1734027602851,2.1365,233.92,233.87,5.92997558]
[1734027603044,2.1365,233.92,233.91,3.30947453]
[1734027603244,2.1365,233.93,233.89,2.1367]
[1734027603445,2.1365,233.93,233.9,6.28341628]
[1734027603843,2.1365,233.93,233.91,2.97394175]
[1734027604044,2.1365,233.93,233.92,3.30947453]
[1734027605947,2.12,233.97,233.88,2.97290012]
[1734027606143,2.1365,233.92,233.89,5.30152173]
[1734027606447,2.1365,233.92,233.9,8.27800112]
[1734027606749,2.12,233.97,233.91,11.59292851]
[1734027606750,2.1364,233.93,233.91,11.59292851]
[1734027606955,2.1364,233.93,233.92,3.31345108]
[1734027607250,2.1364,233.93,233.92,6.29205181]
[1734027607847,2.1364,233.93,233.92,3.31345108]
[1734027609055,2.12,233.97,233.88,5.10970012]
[1734027609251,2.1365,233.92,233.89,16.37154203]
[1734027609448,2.12,233.97,233.9,11.60435341]
[1734027609650,2.1363,233.94,233.91,3.31794793]
[1734027609850,11.58007999,233.95,233.88,2.97290012]
[1734027610052,11.58007999,233.95,233.89,11.60929936]
[1734027610246,11.58007999,233.95,233.9,6.30245489]
[1734027610455,11.58007999,233.95,233.91,3.32005257]
[1734027610650,11.58007999,233.95,233.88,2.97290012]
[1734027610850,11.58007999,233.95,233.89,11.61537819]
[1734027611052,11.58007999,233.92,233.9,6.30290758]
[1734027611251,2.12,233.91,233.88,2.97290012]
[1734027611950,11.58007999,233.89,233.88,2.97290012]
[1734027612251,13.71677999,233.89,233.88,2.97290012]
[1734027613153,11.58007999,233.89,233.77,7.0347]
[1734027613352,11.58007999,233.89,233.78,16.40598689]
[1734027613553,11.58007999,233.89,233.79,6.30999496]
[1734027613753,11.58007999,233.89,233.8,6.30999496]
[1734027613953,11.58007999,233.89,233.8,3.32419025]
[1734027614256,11.58007999,233.89,233.77,2.7769]
[1734027614449,11.58007999,233.89,233.78,11.62631268]
[1734027614655,11.58007999,233.89,233.79,6.30879749]
[1734027614847,2.1375,233.81,233.8,3.32344699]
[1734027615453,2.1377,233.79,233.74,5.92997558]
[1734027615652,2.12,233.85,233.75,13.07591291]
[1734027615857,2.12,233.85,233.76,13.07591291]
[1734027616061,2.12,233.85,233.77,11.62319259]
[1734027616261,2.12,233.85,233.78,6.30710334]
[1734027616560,2.12,233.85,233.79,6.30710334]
[1734027616758,2.12,233.85,233.73,10.18817558]
[1734027616759,2.12,233.85,233.8,3.32174257]
[1734027617060,2.12,233.85,233.74,5.92997558]
[1734027617361,2.12,233.85,233.75,21.09082253]
[1734027617551,2.12,233.85,233.76,16.39443685]
[1734027617754,2.12,233.85,233.77,16.39443685]
[1734027617954,2.12,233.85,233.78,11.62033681]
[1734027618158,2.12,233.85,233.79,6.30555263]
[1734027618359,2.12,233.85,233.8,3.32174011]
[1734027618560,2.12,233.85,233.75,2.138]
[1734027618855,2.1374,233.83,233.76,7.75460523]
[1734027619060,2.12,233.85,233.77,16.38743782]
[1734027619258,7.41941726,233.84,233.78,2.98254047]
[1734027619560,7.41941726,233.84,233.79,6.3028607]
[1734027619761,2.1375,233.81,233.8,3.32032023]
[1734027619961,7.41941726,233.84,233.76,7.41941726]
[1734027620154,7.41941726,233.84,233.77,11.61358415]
[1734027620359,7.41941726,233.84,233.78,6.3018884]
[1734027620559,7.41941726,233.82,233.73,2.1382]
[1734027620756,7.41941726,233.82,233.75,7.41941726]
[1734027620958,7.41941726,233.82,233.76,6.30116855]
[1734027621161,7.41941726,233.82,233.77,6.30116855]
[1734027621363,7.41941726,233.82,233.78,3.31945789]
[1734027621558,7.41941726,233.82,233.75,7.41941726]
[1734027621761,7.41941726,233.82,233.76,6.29968761]
[1734027621959,7.41941726,233.82,233.77,2.98103031]
[1734027622362,7.41941726,233.8,233.71,12.03999558]
[1734027622562,9.53941726,233.8,233.72,11.06805304]
[1734027622857,2.1381,233.74,233.73,6.29922816]
[1734027623062,2.1381,233.74,233.73,3.31871261]
[1734027623361,7.41941726,233.78,233.71,1.85172]
[1734027623362,2.1382,233.73,233.71,1.85172]
[1734027623564,2.1382,233.73,233.72,6.29712805]
[1734027623964,2.1382,233.73,233.72,3.31733678]
[1734027624164,2.1383,233.72,233.71,1.85172]
[1734027624361,2.1383,233.72,233.71,5.16773874]
[1734027624561,2.1383,233.72,233.71,3.83403874]
[1734027624764,2.1383,233.72,233.71,0.51802]
[1734027630263,2.1385,233.71,233.69,2.8586]
[1734027630463,7.41941726,233.74,233.69,1.4305]
[1734027630969,7.41941726,233.74,233.67,7.41941726]
[1734027631668,2.1387,233.69,233.67,7.41941726]
[1734027634069,7.41941726,233.74,233.65,1.4127]
[1734027634368,7.41941726,233.74,233.67,7.41941726]
[1734027636666,2.1385,233.7,233.67,7.41941726]
[1734027640370,2.1386,233.69,233.67,7.41941726]
[1734027640875,2.1384,233.72,233.67,7.41941726]
[1734027641375,2.1384,233.72,233.69,2.1386]
[1734027641968,4.2738,233.88,233.71,7.41941726]
[1734027642174,2.12,233.83,233.75,7.41941726]
[1734027642773,2.1377,233.79,233.75,9.55741726]
[1734027643074,2.1377,233.79,233.75,7.41941726]
[1734027643271,7.41941726,233.82,233.75,9.55731726]
[1734027644073,2.1377,233.79,233.75,9.55731726]
[1734027644381,7.41941726,233.76,233.71,1.374]
[1734027644780,2.1382,233.74,233.71,1.374]
[1734027648281,2.1382,233.74,233.72,7.41941726]
[1734027649579,2.1379,233.77,233.73,2.1382]
[1734027650685,2.1379,233.77,233.72,7.41941726]
[1734027650686,2.1379,233.77,233.74,2.1381]
[1734027651277,2.1379,233.77,233.73,2.1382]
[1734027653586,2.1379,233.77,233.74,3.3148789]
[1734027653787,2.1379,233.77,233.73,2.1382]
[1734027654087,2.1379,233.77,233.74,6.29285356]
[1734027654294,2.1379,233.77,233.76,141.70389469]
[1734027654581,7.41941726,233.8,233.76,141.70389469]
[1734027654582,7.41941726,233.8,233.76,171.2754413]
[1734027654783,7.41941726,233.8,233.77,127.49502853]
[1734027654984,7.41941726,233.8,233.77,71.38193671]
[1734027655383,2.1378,233.78,233.76,71.38193671]
[1734027655582,7.41941726,233.8,233.76,71.38193671]
[1734027656277,2.1377,233.79,233.76,71.38193671]
[1734027656583,7.41941726,233.8,233.76,71.38193671]
[1734027657086,2.1377,233.79,233.77,127.39686373]
[1734027657388,7.41941726,233.8,233.76,71.38193671]
[1734027657586,7.41941726,233.8,233.77,3.32190647]
[1734027657788,7.41941726,233.8,233.76,71.38193671]
[1734027658384,7.41941726,233.8,233.77,130.71783603]
[1734027658580,7.41941726,233.8,233.77,71.38193671]
[1734027659079,7.41941726,233.8,233.76,71.38193671]
[1734027659286,7.41941726,233.8,233.77,3.32292]
[1734027659485,2.1378,233.77,233.76,71.38193671]
[1734027659685,2.1378,233.77,233.76,174.08935158]
[1734027659880,2.1378,233.77,233.76,170.7663566]
[1734027660088,2.1378,233.77,233.76,58.99450728]
[1734027660389,2.1378,233.77,233.76,62.31769387]
[1734027660580,2.1378,233.77,233.76,133.70959897]
[1734027661096,2.1378,233.77,233.76,133.70808778]
[1734027661781,2.1378,233.77,233.76,130.72303562]
[1734027662090,2.1378,233.77,233.76,133.70880844]
[1734027663893,2.1378,233.77,233.76,6.30895941]
[1734027664091,2.1378,233.77,233.76,3.32318659]
[1734027664389,2.12,233.77,233.71,71.03770014]
[1734027664588,7.41941726,233.72,233.7,71.39039391]
[1734027664783,2.1385,233.7,233.69,5.94919949]
[1734027664990,2.1385,233.7,233.69,6.31452111]
[1734027664991,7.41941726,233.7,233.69,6.31452111]
[1734027665392,9.55791726,233.7,233.69,6.31452111]
[1734027665588,9.55791726,233.7,233.69,3.32649924]
[1734027665986,7.41941726,233.7,233.67,71.39039391]
[1734027666190,7.41941726,233.7,233.68,3.32677351]
[1734027666491,7.41941726,233.7,233.66,71.39039391]
[1734027666688,7.41941726,233.7,233.67,133.69706023]
[1734027666889,7.41941726,233.7,233.68,6.31408605]
[1734027667088,2.1388,233.67,233.66,71.39039391]
[1734027667289,2.1388,233.67,233.66,133.68423236]
[1734027667890,2.1388,233.67,233.66,130.35834657]
[1734027668094,2.1388,233.67,233.66,62.29403548]
[1734027668694,2.1388,233.67,233.66,133.6468412]
[1734027668891,7.41941726,233.68,233.64,71.35280572]
[1734027669189,2.1389,233.65,233.64,71.35280572]
[1734027669390,2.1389,233.65,233.64,130.2890948]
[1734027669696,2.1389,233.65,233.64,133.61373538]
[1734027670188,2.1389,233.65,233.64,6.31089467]
[1734027670389,2.1389,233.65,233.64,3.32464058]
[1734027670591,7.41941726,233.66,233.63,17.83820143]
[1734027670788,7.41941726,233.64,233.61,23.78426857]
[1734027671096,7.41941726,233.62,233.61,23.78426857]
[1734027671292,7.41941726,233.62,233.61,6.30969427]
[1734027671293,9.55861726,233.62,233.61,6.30969427]
[1734027671493,7.41941726,233.62,233.59,23.78426857]
[1734027672194,2.1394,233.6,233.59,5.94606714]
[1734027672494,2.12,233.67,233.59,46.54969177]
[1734027672693,2.12,233.67,233.64,5.93522225]
[1734027672889,2.12,233.71,233.66,17.83820143]
[1734027673090,2.12,233.71,233.67,55.45743783]
[1734027673296,2.12,233.71,233.67,23.77161159]
[1734027673493,2.12,233.71,233.68,11.01016753]
[1734027673695,2.12,233.71,233.68,23.77161159]
[1734027673890,2.1385,233.7,233.68,23.77161159]
[1734027674094,7.41941726,233.7,233.67,23.77161159]
[1734027674401,7.41941726,233.7,233.66,5.93341016]
[1734027674599,2.1386,233.69,233.67,11.01007879]
[1734027674795,2.1386,233.69,233.67,5.93341016]
[1734027675400,2.1386,233.69,233.68,3.43805271]
[1734027675897,2.1386,233.69,233.68,14.44764236]
[1734027676099,2.1386,233.69,233.68,3.43805271]
[1734027677503,2.1386,233.69,233.67,5.93341016]
[1734027677702,2.1386,233.69,233.68,3.43762816]
[1734027677898,2.1386,233.69,233.67,5.93341016]
[1734027678103,2.1386,233.69,233.68,3.43762816]
[1734027678303,2.1388,233.68,233.66,5.93341016]
[1734027678602,7.41941726,233.67,233.66,5.93341016]
[1734027678798,7.41941726,233.67,233.66,14.41488922]
[1734027679201,7.41941726,233.67,233.66,3.40572459]
[1734027680894,7.41941726,233.67,233.66,3.40520805]
[1734027681099,9.55821726,233.67,233.66,3.40520805]
[1734027684101,9.55821726,233.67,233.61,2.1393]
[1734027684398,2.139,233.65,233.62,6.35142618]
[1734027684599,2.139,233.65,233.63,6.35142618]
[1734027684804,2.139,233.65,233.64,6.35142618]
[1734027685006,2.139,233.65,233.64,3.37230555]
[1734027685704,5.22429528,233.72,233.64,3.37230555]
[1734027685705,2.1387,233.68,233.64,3.37230555]
[1734027685896,7.41941726,233.69,233.65,3.37230555]
[1734027686095,7.41941726,233.69,233.6,13.35282742]
[1734027686298,7.41941726,233.69,233.61,21.53650457]
[1734027686504,2.1388,233.67,233.62,11.74442482]
[1734027686809,2.1388,233.67,233.63,6.34997478]
[1734027686997,2.1388,233.67,233.64,6.34997478]
[1734027687305,2.1389,233.66,233.65,3.37135733]
[1734027689304,2.139,233.65,233.63,5.93341016]
[1734027689503,2.139,233.65,233.64,8.40028631]
[1734027690203,7.41941726,233.65,233.63,5.93341016]
[1734027690400,2.1391,233.63,233.62,5.93341016]
[1734027690711,9.55851726,233.63,233.62,20.0400841]
[1734027690911,9.55851726,233.63,233.62,3.49115824]
[1734027691903,2.1391,233.63,233.62,8.52166227]
[1734027692307,2.1391,233.63,233.62,3.49115824]
[1734027693504,2.1391,233.63,233.61,23.77161159]
[1734027693704,2.1391,233.63,233.62,3.45863559]
[1734027695005,2.1391,233.63,233.62,9.39204575]
[1734027695205,2.1391,233.63,233.62,3.45863559]
[1734027696913,2.1392,233.62,233.61,23.77161159]
[1734027697106,2.1392,233.62,233.61,52.02707813]
[1734027697606,2.1392,233.62,233.61,55.48561313]
[1734027698212,2.1392,233.62,233.61,133.31369723]
[1734027699115,7.41941726,233.63,233.58,71.34014874]
[1734027699314,2.1396,233.58,233.57,71.34014874]
[1734027699515,2.1396,233.58,233.57,129.91702606]
[1734027700017,7.41941726,233.58,233.56,71.74169874]
[1734027700212,2.1397,233.57,233.56,71.74169874]
[1734027700513,2.1397,233.57,233.56,133.73600031]
[1734027701313,2.1397,233.57,233.56,52.82936093]
[1734027701512,2.12,233.64,233.56,133.72110916]
[1734027701809,5.22429528,233.72,233.63,71.34014874]
[1734027701810,7.41941726,233.68,233.63,71.34014874]
[1734027702309,7.41941726,233.68,233.64,3.06884771]
[1734027702511,5.22429528,233.72,233.65,3.06884771]
[1734027702715,2.12,233.7,233.66,6.49954233]
[1734027702916,2.12,233.7,233.67,3.43069462]
[1734027703313,2.1386,233.69,233.64,8.07241016]
[1734027703517,2.1386,233.69,233.65,22.92836175]
[1734027703818,2.1386,233.69,233.66,6.49999671]
[1734027704018,2.1386,233.69,233.65,5.93341016]
[1734027704019,2.1386,233.69,233.67,6.49999671]
[1734027704219,2.1386,233.69,233.68,3.43101658]
[1734027706518,2.1386,233.69,233.68,6.50411834]
[1734027706916,2.1386,233.69,233.68,3.07310176]
[1734027707117,2.1386,233.69,233.68,6.5091657]
[1734027707416,2.1386,233.69,233.68,3.43606394]
[1734027708317,2.1386,233.69,233.68,6.51244182]
[1734027709822,2.1386,233.69,233.68,6.51412238]
[1734027712821,2.1389,233.65,233.64,142.37784888]
[1734027713022,2.1389,233.65,233.64,252.70533842]
[1734027713321,2.1389,233.65,233.64,255.78309568]
[1734027713627,2.1389,233.65,233.64,6.37422095]
[1734027715316,9.55831726,233.66,233.64,6.37422095]
[1734027715519,9.55831726,233.66,233.65,11.43392166]
[1734027716528,9.55831726,233.66,233.65,11.51835949]
[1734027717722,7.41941726,233.66,233.65,435.62036939]
[1734027718028,7.41941726,233.66,233.65,11.51835949]
[1734027718231,7.41941726,233.66,233.65,8.2218958]
[1734027718421,2.12,233.69,233.65,3.16226761]
[1734027718621,7.41941726,233.66,233.61,260.77401578]
[1734027718818,7.41941726,233.63,233.62,6.36691206]
[1734027719326,7.41941726,233.63,233.62,3.06756357]
[1734027719521,7.41941726,233.63,233.62,6.36757455]
[1734027719727,9.55851726,233.63,233.62,6.36757455]
[1734027720924,2.1391,233.63,233.62,6.36757455]
[1734027721126,7.41941726,233.67,233.62,192.51790939]
[1734027721323,7.41941726,233.67,233.63,263.54712757]
[1734027721522,7.41941726,233.67,233.64,11.8338812]
[1734027721727,7.41941726,233.67,233.65,6.36615831]
[1734027721929,7.41941726,233.67,233.66,6.36615831]
[1734027722133,2.1387,233.69,233.66,6.36615831]
[1734027722326,7.41941726,233.7,233.67,263.48894651]
[1734027722627,7.41941726,233.7,233.68,11.8314228]
[1734027722827,7.41941726,233.7,233.66,142.37784888]
[1734027722828,9.55791726,233.7,233.69,3.30001098]
[1734027723025,9.55791726,233.7,233.69,6.21523363]
[1734027723230,9.55791726,233.7,233.69,3.30001098]
[1734027723434,9.55791726,233.7,233.69,6.21478051]
[1734027723626,2.1385,233.7,233.69,6.21397253]
[1734027723828,9.55791726,233.7,233.69,6.21397253]
[1734027724528,2.1386,233.69,233.67,142.37784888]
[1734027724729,2.1386,233.69,233.68,2.91449423]
[1734027724929,2.1386,233.69,233.68,5.41233384]
[1734027725131,2.1386,233.69,233.68,8.32682632]
[1734027725533,2.1386,233.69,233.68,11.70949393]
[1734027727734,2.1386,233.69,233.67,142.37784888]
[1734027727923,2.1386,233.69,233.68,253.23412865]
[1734027728126,2.1386,233.69,233.68,12.01861876]
[1734027729128,2.1386,233.69,233.68,9.10445253]
[1734027729832,2.1386,233.69,233.68,12.01933572]
[1734027730735,2.1386,233.69,233.68,12.02022938]
[1734027730938,7.41941726,233.7,233.65,71.34014874]
[1734027731130,2.1389,233.66,233.65,71.34014874]
[1734027731329,2.1389,233.66,233.65,136.67440471]
[1734027731630,2.1389,233.66,233.65,142.22979334]
[1734027732124,2.1389,233.66,233.65,11.94355308]
[1734027732324,2.1389,233.66,233.65,6.38816445]
[1734027732529,2.1389,233.66,233.65,3.47211789]
[1734027732935,2.1392,233.62,233.61,71.34014874]
[1734027733136,9.55861726,233.62,233.61,136.59497909]
[1734027733832,9.55861726,233.62,233.61,141.41112141]
[1734027734029,9.55861726,233.62,233.61,133.58452837]
[1734027734225,9.55861726,233.62,233.61,136.59473579]
[1734027734428,9.55861726,233.62,233.61,133.58452837]
[1734027734737,9.55861726,233.62,233.61,136.59475542]
[1734027735732,9.55861726,233.62,233.61,6.24923216]
[1734027736930,5.22429528,233.72,233.61,6.24923216]
[1734027737129,7.41941726,233.68,233.62,6.24923216]
[1734027737330,7.41941726,233.68,233.63,3.01022705]
[1734027737639,7.41941726,233.68,233.64,3.01022705]
[1734027737829,7.41941726,233.68,233.65,3.01022705]
[1734027738029,7.41941726,233.68,233.66,133.39123666]
[1734027738229,7.41941726,233.7,233.67,3.01022705]
[1734027738436,7.41941726,233.7,233.68,6.24861995]
[1734027738630,7.34429528,233.72,233.69,3.01022705]
[1734027738631,2.12,233.72,233.69,3.01022705]
[1734027738838,9.53941726,233.72,233.67,71.37176743]
[1734027739035,2.1384,233.71,233.68,6.24452454]
[1734027739235,9.53941726,233.72,233.69,3.00802067]
[1734027739532,7.41941726,233.72,233.7,3.00802067]
[1734027739738,2.1385,233.7,233.67,71.37176743]
[1734027739939,2.1385,233.7,233.68,6.24417774]
[1734027740136,2.1385,233.7,233.69,3.00784827]
[1734027740535,2.1385,233.7,233.69,3.00781172]
[1734027740737,7.41941726,233.72,233.69,3.00781172]
[1734027741036,7.41941726,233.72,233.67,142.40946757]
[1734027741037,2.1384,233.71,233.7,3.00781172]
[1734027743952,2.1384,233.71,233.67,142.40946757]
[1734027744142,2.1384,233.71,233.68,3.00832661]
[1734027744447,2.1385,233.7,233.69,3.00832661]
[1734027745047,9.55791726,233.7,233.69,3.00832661]
[1734027745847,9.55791726,233.7,233.69,6.24516849]
[1734027746348,2.1384,233.71,233.69,6.24516849]
[1734027746549,2.1384,233.71,233.7,6.24516849]
[1734027746945,2.1383,233.72,233.7,6.24516849]
[1734027747249,9.53941726,233.76,233.71,6.24516849]
[1734027747447,7.41941726,233.76,233.72,6.24516849]
[1734027747651,2.1381,233.75,233.7,2.1385]
[1734027747847,2.1381,233.75,233.73,260.80563447]
[1734027748045,2.1381,233.75,233.74,6.37142326]
[1734027749156,2.1383,233.72,233.71,260.80563447]
[1734027749357,2.1383,233.72,233.71,425.54790874]
[1734027750056,2.1383,233.72,233.71,416.8147432]
[1734027750251,2.1383,233.72,233.71,425.54611398]
[1734027750659,2.1383,233.72,233.71,420.17296273]
[1734027751954,2.1383,233.72,233.71,421.62944411]
[1734027752248,2.1383,233.72,233.71,77.40500504]
[1734027752448,2.1383,233.72,233.71,6.3673049]
[1734027753160,2.1383,233.72,233.71,3.01009685]
[1734027753362,2.1383,233.72,233.71,6.36688199]
[1734027753856,2.1383,233.72,233.71,3.35678514]
[1734027754157,9.53941726,233.73,233.68,262.20533447]
[1734027754356,2.1386,233.69,233.68,262.20533447]
[1734027754559,2.1386,233.69,233.68,428.38359815]
[1734027754755,7.41941726,233.7,233.65,260.80563447]
[1734027754956,2.1389,233.65,233.64,262.12933447]
[1734027755157,2.1389,233.65,233.64,431.68905172]
[1734027755760,2.1389,233.65,233.64,426.872739]
[1734027756157,2.1389,233.65,233.64,431.68845141]
[1734027756565,2.1389,233.65,233.64,431.68824761]
[1734027757266,2.1389,233.65,233.64,420.17549741]
[1734027757459,2.1389,233.65,233.64,6.36815638]
[1734027759564,7.41941726,233.66,233.63,260.80563447]
[1734027759766,9.55841726,233.64,233.63,260.80563447]
[1734027760065,9.55841726,233.64,233.63,424.80358323]
[1734027761060,9.55841726,233.64,233.63,74.74362456]
[1734027761365,9.55841726,233.64,233.63,6.36779116]
[1734027762861,2.1391,233.63,233.62,260.80563447]
[1734027763066,2.1391,233.63,233.62,45.34973069]
[1734027763365,4.2391,233.63,233.62,45.34973069]
[1734027763558,4.2391,233.63,233.62,41.99192376]
[1734027764360,2.1,233.63,233.57,142.40946757]
[1734027764566,7.41941726,233.59,233.58,3.3589013]
[1734027765166,2.1399,233.54,233.53,5.94764728]
[1734027765368,9.55931726,233.54,233.53,22.56413888]
[1734027765572,9.55931726,233.54,233.53,3.35959106]
[1734027765965,9.55931726,233.54,233.52,2.742]
[1734027766171,9.55931726,233.54,233.53,3.35766981]
[1734027769673,2.14,233.53,233.52,1.3364]
[1734027769868,2.14,233.53,233.52,4.68772315]
[1734027771169,2.14,233.53,233.52,1.3364]
[1734027771370,2.1402,233.51,233.48,5.94764728]
[1734027771570,2.1402,233.51,233.47,19.19184186]
[1734027771571,7.41941726,233.5,233.49,6.30895405]
[1734027771771,7.41941726,233.5,233.49,3.3490039]
[1734027772365,2.1405,233.48,233.45,5.94764728]
[1734027772565,7.41941726,233.5,233.46,2.95881753]
[1734027772875,7.41941726,233.5,233.47,6.30668371]
[1734027773068,7.41941726,233.5,233.48,3.34780875]
[1734027773268,7.41941726,233.5,233.46,3.34773963]
[1734027773575,7.41941726,233.5,233.47,3.34637981]
[1734027773879,7.41941726,233.5,233.46,3.34773963]
[1734027774077,7.41941726,233.5,233.47,3.34639363]
[1734027774272,7.41941726,233.5,233.45,5.94764728]
[1734027774578,2.1404,233.49,233.44,25.10658914]
[1734027774873,2.1404,233.49,233.45,14.27303498]
[1734027775177,7.41941726,233.5,233.46,8.32516813]
[1734027775373,7.41941726,233.5,233.45,5.94764728]
[1734027775675,7.41941726,233.5,233.46,8.32213626]
[1734027775975,7.41941726,233.5,233.45,8.08834728]
[1734027776177,7.41941726,233.5,233.46,8.32210766]
[1734027776378,7.41941726,233.5,233.45,8.08834728]
[1734027776670,7.41941726,233.5,233.46,8.32103574]
[1734027776875,9.55971726,233.5,233.45,2.1407]
[1734027777067,2.1,233.51,233.45,7.41941726]
[1734027777268,9.51941726,233.53,233.46,19.80234744]
[1734027777479,9.51941726,233.53,233.47,3.34159458]
[1734027777677,9.51941726,233.53,233.48,3.34159458]
[1734027777977,9.51941726,233.53,233.45,31.2100064]
[1734027777978,9.51941726,233.53,233.49,2.1404]
[1734027778576,9.51941726,233.53,233.48,2.1405]
[1734027778971,9.51941726,233.53,233.49,3.45916479]
[1734027779277,9.51941726,233.53,233.48,2.1405]
[1734027779477,11.65951726,233.53,233.49,3.45843763]
[1734027779778,11.65951726,233.53,233.48,2.1405]
[1734027780074,7.41941726,233.51,233.44,8.73541726]
[1734027780276,7.41941726,233.51,233.47,2.1406]
[1734027780571,7.41941726,233.51,233.48,3.45852873]
[1734027780773,9.51941726,233.53,233.49,3.45852873]
[1734027780976,11.65951726,233.53,233.44,8.73541726]
[1734027781279,11.65951726,233.53,233.45,11.9423278]
[1734027781475,9.51941726,233.53,233.46,10.37078646]
[1734027781680,9.51941726,233.53,233.47,2.9513692]
[1734027781874,9.51941726,233.53,233.46,7.41941726]
[1734027782073,9.51941726,233.53,233.46,10.87705149]
[1734027782270,9.51941726,233.53,233.48,2.1405]
[1734027782475,9.51941726,233.53,233.49,3.45763423]
[1734027782675,11.65951726,233.53,233.48,2.1405]
[1734027782979,11.65951726,233.53,233.49,3.45681432]
[1734027783170,9.51941726,233.53,233.49,2.1404]
[1734027783379,7.41941726,233.57,233.49,7.41941726]
[1734027783574,9.51941726,233.57,233.5,4.83050062]
[1734027783876,9.51941726,233.57,233.51,3.45630062]
[1734027784072,2.1,233.57,233.51,7.41941726]
[1734027784272,7.41941726,233.59,233.52,4.78657461]
[1734027784584,5.24438793,233.61,233.55,7.41941726]
[1734027784585,12.66380519,233.61,233.55,7.41941726]
[1734027784777,12.66380519,233.61,233.57,2.1397]
[1734027784974,7.41941726,233.61,233.57,2.1397]
[1734027785370,43.83862936,233.62,233.58,5.58961447]
[1734027785571,7.41941726,233.63,233.57,7.41941726]
[1734027785774,7.41941726,233.63,233.58,3.44945889]
[1734027785972,7.41941726,233.63,233.57,7.41941726]
[1734027786170,7.41941726,233.63,233.58,3.44945891]
[1734027786382,7.41941726,233.63,233.59,3.44945891]
[1734027786576,7.41941726,233.63,233.57,7.41941726]
[1734027786778,9.55841726,233.65,233.59,2.1395]
[1734027786977,11.65841726,233.65,233.59,2.1395]
[1734027787878,2.139,233.64,233.58,2.1396]
[1734027788078,2.139,233.64,233.59,9.39912531]
[1734027788280,2.139,233.64,233.59,5.94764728]
[1734027788477,2.139,233.64,233.6,4.9385573]
[1734027788681,2.139,233.64,233.59,5.94764728]
[1734027788882,9.55851726,233.63,233.6,4.93909197]
[1734027789080,7.41941726,233.61,233.58,5.94764728]
[1734027789278,7.41941726,233.59,233.57,5.94764728]